[Event "4NCL Div 1 2018-19"]
[Site "Daventry"]
[Date "2018.11.10"]
[Round "1"]
[White "Webster, David"]
[Black "Yurenok, Maria S"]
[Result "1-0"]
[ECO "A08"]
[WhiteElo "1964"]
[BlackElo "2005"]
[Annotator "NA"]
[PlyCount "111"]
[EventDate "2018.11.10"]
[EventType "team-tourn"]
[EventCountry "GBR"]
[SourceTitle "playchess.com"]
[Source "ChessBase"]
[SourceQuality "1"]
[TimeControl "40/6000+30:3000+30"]

1. e4 {[%emt 0:00:00]} c5 {[%emt 0:00:00]} 2. Nf3 {[%emt 0:00:00]} e6 {[%emt 0:00:00]} 3. d3 {[%emt 0:00:00]} Nc6 {[%emt 0:00:00]} 4. g3 {[%emt 0:00:00]} g6 {[%emt 0:01:15]} 5. Bg2 {[%emt 0:00:33]} Bg7 {[%emt 0:00:10]} 6. O-O {[%emt 0:00:13]} Nge7 {[%emt 0:00:48]} 7. c3 {[%emt 0:00:32]} d5 {[%emt 0:12:13]} 8. Nbd2 {[%emt 0:01:41]} O-O {[%emt 0:02:32]} 9. Re1 {[%emt 0:03:12]} b6 {[%emt 0:44:04]} 10. e5 {[%emt 0:06:54]} Ba6 {[%emt 0:06:49]} 11. Nf1 {[%emt 0:02:23] A08: King's Indian Attack} h6 {[%emt 0:07:23]} (11... Qc7 12. Bf4 Rac8 13. Qd2 d4 14. c4 Nb8 15. Re2 Nd7 16. Bh6 Bb7 17. Bxg7 Kxg7 18. Rae1 Bxf3 19. Bxf3 Nc6 20. Bxc6 Qxc6 {1-0 (46) Vila Gazquez,X (2472)-Akbarinia,S (2403) Barcelona 2016}) 12. h4 {[%emt 0:03:05]} Rc8 {[%emt 0:03:57]} 13. Bf4 {[%emt 0:03:15]} Nf5 {[%emt 0:10:12]} 14. Qd2 $146 {[%emt 0:04:39]} ({Predecessor:} 14. Bh3 b5 15. Qd2 Kh7 16. h5 g5 17. Bxf5+ exf5 18. Bxg5 hxg5 19. Nxg5+ {1-0 (44) Lomakina,G (2231)-Yuganova,M (1900) Tula 2007}) 14... f6 {[%emt 0:06:24]} 15. g4 {[%emt 0:15:34]} fxe5 {[%emt 0:02:48]} 16. gxf5 {[%emt 0:00:36]} exf4 {[%emt 0:00:06]} 17. Rxe6 {[%emt 0:07:51]} gxf5 {[%emt 0:00:35]} 18. Qxf4 {[%emt 0:10:38]} Qc7 {[%emt 0:01:26]} 19. Qd2 {[%emt 0:04:27]} Rce8 {[%emt 0:04:00]} 20. Rae1 {[%emt 0:05:27]} Qd7 {[%emt 0:02:43]} 21. Rxe8 {[%emt 0:02:35]} Rxe8 {[%emt 0:00:04]} 22. Rxe8+ {[%emt 0:03:13]} Qxe8 {[%emt 0:00:05]} 23. Ng3 {[%emt 0:03:05]} Bc8 {[%emt 0:00:29]} 24. Qf4 {[%emt 0:02:13]} Qf7 {[%emt 0:02:44]} 25. Bh3 {[%emt 0:05:23]} Be6 {[%emt 0:00:58]} 26. Bxf5 {[%emt 0:04:03]} Bxf5 {[%emt 0:00:39]} 27. Nxf5 {[%emt 0:01:44]} Ne7 {[%emt 0:00:30]} 28. Nxe7+ {[%emt 0:02:32]} Qxe7 {[%emt 0:00:05]} 29. Qf5 {[%emt 0:05:15]} Qd6 {[%emt 0:00:13]} 30. h5 {[%emt 0:01:37]} Kh8 {[%emt 0:00:52]} 31. Nh4 {[%emt 0:01:07]} d4 {[%emt 0:00:52]} 32. Qf7 {[%emt 0:00:38]} Qf6 {[%emt 0:00:27]} 33. Ng6+ {[%emt 0:00:10]} Kh7 {[%emt 0:00:06]} 34. Qxf6 {[%emt 0:01:07]} Bxf6 {[%emt 0:00:04]} 35. c4 {[%emt 0:00:12]} Kg7 {[%emt 0:00:28]} 36. Kg2 {[%emt 0:00:54]} a6 {[%emt 0:00:14]} 37. Kf3 {[%emt 0:00:51]} Kf7 {[%emt 0:00:33]} 38. Ke4 {[%emt 0:00:26]} b5 {[%emt 0:01:02]} 39. Kd5 {[%emt 0:00:59]} bxc4 {[%emt 0:00:07]} 40. Kxc4 {[%emt 0:00:07]} Ke6 {[%emt 0:00:41]} 41. Kxc5 {[%emt 0:51:52]} Kf5 {[%emt 0:50:32]} 42. Kd5 {[%emt 0:00:00]} Kg4 {[%emt 0:00:00]} 43. Ke4 {[%emt 0:00:00]} Kxh5 {[%emt 0:00:00]} 44. Kf5 {[%emt 0:00:00]} Bd8 {[%emt 0:00:00]} 45. b4 {[%emt 0:00:00]} Bg5 {[%emt 0:00:00]} 46. a4 {[%emt 0:00:00]} Bd2 {[%emt 0:00:00]} 47. b5 {[%emt 0:00:00]} axb5 {[%emt 0:00:00]} 48. axb5 $18 {[%emt 0:00:00]} Ba5 {[%emt 0:00:00]} 49. Nf4+ {[%emt 0:00:00]} Kh4 {[%emt 0:00:00]} 50. Nd5 {[%emt 0:00:00]} h5 {[%emt 0:00:00]} 51. b6 {[%emt 0:00:00]} Bxb6 {[%emt 0:00:00]} 52. Nxb6 {[%emt 0:00:00]} Kh3 {[%emt 0:00:00]} 53. Nd5 {[%emt 0:00:00]} Kg2 {[%emt 0:00:00]} 54. Nf4+ {[%emt 0:00:00]} Kxf2 {[%emt 0:00:00]} 55. Nxh5 {[%emt 0:00:00]} Ke3 {[%emt 0:00:00]} 56. Nf4 {[%emt 0:00:00]} 1-0

[Event "4NCL Div 1 2018-19"]
[Site "Daventry"]
[Date "2018.11.10"]
[Round "1"]
[White "Sheremetyeva, Elizaveta"]
[Black "Martinez, Ayelen"]
[Result "0-1"]
[ECO "C35"]
[WhiteElo "1885"]
[BlackElo "2196"]
[Annotator "NA"]
[PlyCount "38"]
[EventDate "2018.11.10"]
[EventType "team-tourn"]
[EventCountry "GBR"]
[SourceTitle "playchess.com"]
[Source "ChessBase"]
[SourceQuality "1"]
[TimeControl "40/6000+30:3000+30"]

1. e4 {[%emt 0:00:00]} e5 {[%emt 0:00:00]} 2. f4 {[%emt 0:00:00]} exf4 {[%emt 0:00:14]} 3. Nf3 {[%emt 0:00:00]} Be7 {[%emt 0:00:07]} 4. Bc4 {[%emt 0:00:02]} Bh4+ {[%emt 0:00:14]} 5. Kf1 {[%emt 0:00:38]} d5 {[%emt 0:00:18]} 6. exd5 {[%emt 0:04:04]} Bg4 {[%emt 0:01:06]} 7. d3 {[%emt 0:02:05]} Qf6 {[%emt 0:03:38]} 8. Nc3 {[%emt 0:01:21]} Ne7 {[%emt 0:01:15]} 9. Ne4 {[%emt 0:03:17]} Qb6 {[%emt 0:00:56]} 10. Bxf4 {[%emt 0:03:44]} O-O {[%emt 0:01:44]} 11. Be5 {[%emt 0:05:28]} Nf5 {[%emt 0:01:06]} 12. Qd2 {[%emt 0:05:13]} Ne3+ {[%emt 0:01:15]} 13. Ke2 {[%emt 0:00:29]} Nxc4 {[%emt 0:02:13]} 14. dxc4 {[%emt 0:00:11]} Nd7 {[%emt 0:00:25]} 15. Bd4 {[%emt 0:02:22]} c5 {[%emt 0:08:15]} 16. Be3 {[%emt 0:07:39]} Rae8 {[%emt 0:04:10]} 17. Nf2 {[%emt 0:07:05]} Ne5 {[%emt 0:06:30]} 18. b3 {[%emt 0:03:23]} Qf6 {[%emt 0:04:18]} 19. Kf1 {[%emt 0:05:43]} Nxf3 {[%emt 0:01:10]} 0-1